[Event "HUN-ch Rapid 2019"]
[Site "Ajka"]
[Date "2019.07.19"]
[Round "4.11"]
[White "Egresi, Mate"]
[Black "Bodi, Tibor"]
[Result "1-0"]
[ECO "D37"]
[WhiteElo "2341"]
[BlackElo "2244"]
[Annotator "NA"]
[PlyCount "67"]
[EventDate "2019.07.18"]
[EventType "swiss"]
[EventCountry "HUN"]
[SourceTitle "playchess.com"]
[Source "ChessBase"]
[SourceQuality "1"]
[TimeControl "1200+5"]

1. d4 {[%emt 0:00:02]} Nf6 {[%emt 0:00:04]} 2. c4 {[%emt 0:00:01]} e6 {[%emt 0:00:01]} 3. Nf3 {[%emt 0:00:01]} d5 {[%emt 0:00:01]} 4. Nc3 {[%emt 0:00:01]} Be7 {[%emt 0:00:02]} 5. Bf4 {[%emt 0:00:02]} O-O {[%emt 0:00:05]} 6. e3 {[%emt 0:00:02]} a6 {[%emt 0:00:11]} 7. cxd5 {[%emt 0:00:07]} Nxd5 {[%emt 0:00:07]} 8. Nxd5 {[%emt 0:00:04]} exd5 {[%emt 0:00:03]} 9. Bd3 {[%emt 0:00:12]} c6 {[%emt 0:00:34]} 10. O-O {[%emt 0:00:23]} Nd7 {[%emt 0:00:37]} 11. Qc2 {[%emt 0:00:31]} h6 {[%emt 0:00:13]} 12. Rab1 {[%emt 0:00:30]} a5 {[%emt 0:00:18]} 13. h3 {[%emt 0:00:52]} Re8 {[%emt 0:01:51]} 14. Rbd1 {[%emt 0:00:49]} Nf8 {[%emt 0:00:39]} 15. Ne5 {[%emt 0:00:03]} f6 {[%emt 0:01:10]} 16. Ng6 {[%emt 0:01:27]} Bd6 {[%emt 0:01:35]} 17. Qe2 {[%emt 0:03:08]} Nxg6 {[%emt 0:00:59]} 18. Bxd6 {[%emt 0:00:29]} Qxd6 {[%emt 0:00:18]} 19. Bxg6 {[%emt 0:00:02]} Rf8 {[%emt 0:00:06]} 20. Bb1 {[%emt 0:00:15]} Bd7 {[%emt 0:00:32]} 21. Qh5 {[%emt 0:03:29]} f5 {[%emt 0:00:40]} 22. a3 {[%emt 0:00:40]} f4 {[%emt 0:00:19]} 23. e4 {[%emt 0:00:28]} dxe4 {[%emt 0:00:12]} 24. Bxe4 {[%emt 0:00:11]} Rae8 {[%emt 0:01:23]} 25. Rfe1 {[%emt 0:00:20]} b6 {[%emt 0:00:32]} 26. Qf3 {[%emt 0:01:01]} Re7 {[%emt 0:00:26]} 27. Qb3+ {[%emt 0:00:15]} Ref7 {[%emt 0:01:12]} 28. Qxb6 {[%emt 0:01:05]} f3 {[%emt 0:00:01]} 29. Qc5 {[%emt 0:00:30]} Qb8 {[%emt 0:01:06]} 30. d5 {[%emt 0:01:44]} fxg2 {[%emt 0:00:57]} 31. dxc6 {[%emt 0:00:09]} Rxf2 {[%emt 0:01:33]} 32. cxd7 {[%emt 0:01:32]} Qg3 {[%emt 0:00:02]} 33. Qd5+ {[%emt 0:00:34]} Kh8 {[%emt 0:00:19]} 34. Bxg2 1-0

[Event "HUN-ch Rapid 2019"]
[Site "Ajka"]
[Date "2019.07.19"]
[Round "4.12"]
[White "Emodi, Barnabas"]
[Black "Juhasz, Barbara"]
[Result "1-0"]
[ECO "A48"]
[WhiteElo "2365"]
[BlackElo "2171"]
[Annotator "NA"]
[PlyCount "69"]
[EventDate "2019.07.18"]
[EventType "swiss"]
[EventCountry "HUN"]
[SourceTitle "playchess.com"]
[Source "ChessBase"]
[SourceQuality "1"]
[TimeControl "1200+5"]

1. d4 {[%emt 0:00:02]} Nf6 {[%emt 0:00:01]} 2. Nf3 {[%emt 0:00:03]} g6 {[%emt 0:00:03]} 3. Bg5 {[%emt 0:00:03]} Bg7 {[%emt 0:00:02]} 4. e3 {[%emt 0:00:02]} d6 {[%emt 0:00:05]} 5. Nbd2 {[%emt 0:00:02]} O-O {[%emt 0:00:05]} 6. Bc4 {[%emt 0:00:05]} c5 {[%emt 0:00:18]} 7. c3 {[%emt 0:00:06]} b6 {[%emt 0:00:14]} 8. Bxf6 {[%emt 0:00:05]} Bxf6 {[%emt 0:00:02]} 9. Bd5 {[%emt 0:00:02]} Ba6 {[%emt 0:02:10]} 10. Bxa8 {[%emt 0:00:28]} d5 {[%emt 0:00:02]} 11. Qa4 {[%emt 0:03:54]} Qd6 {[%emt 0:04:19]} 12. e4 {[%emt 0:01:06]} cxd4 {[%emt 0:02:45]} 13. cxd4 {[%emt 0:00:10]} dxe4 {[%emt 0:00:04]} 14. Bxe4 {[%emt 0:00:33]} Rc8 {[%emt 0:00:04]} 15. Qa3 {[%emt 0:02:09]} Qd7 {[%emt 0:01:26]} 16. Bd3 {[%emt 0:01:50]} Qe6+ {[%emt 0:00:02]} 17. Ne4 {[%emt 0:00:38]} Bb7 {[%emt 0:05:07]} 18. O-O {[%emt 0:00:11]} Bxe4 {[%emt 0:00:09]} 19. Rfe1 {[%emt 0:00:08]} Nc6 {[%emt 0:00:26]} 20. Rxe4 {[%emt 0:01:23]} Qd5 {[%emt 0:00:20]} 21. Qb3 {[%emt 0:00:16]} Qd6 {[%emt 0:00:13]} 22. Rd1 {[%emt 0:00:29]} Na5 {[%emt 0:00:27]} 23. Qb5 {[%emt 0:00:10]} e6 {[%emt 0:00:58]} 24. g3 {[%emt 0:00:41]} Kg7 {[%emt 0:00:11]} 25. Ne5 {[%emt 0:00:28]} Rc7 {[%emt 0:00:47]} 26. Nc4 {[%emt 0:00:27]} Nxc4 {[%emt 0:00:02]} 27. Bxc4 {[%emt 0:00:03]} Qd8 {[%emt 0:00:25]} 28. Bb3 {[%emt 0:00:15]} Rd7 {[%emt 0:00:03]} 29. Qe2 {[%emt 0:00:11]} Rd6 {[%emt 0:00:19]} 30. h4 {[%emt 0:00:13]} h5 {[%emt 0:00:02]} 31. Rf4 {[%emt 0:00:07]} Qe7 {[%emt 0:01:01]} 32. Rd3 {[%emt 0:00:16]} g5 {[%emt 0:00:16]} 33. hxg5 {[%emt 0:00:09]} Bxg5 {[%emt 0:00:01]} 34. Re4 {[%emt 0:00:08]} Rd8 {[%emt 0:00:02]} 35. d5 {[%emt 0:00:21]} 1-0

[Event "HUN-ch Rapid 2019"]
[Site "Ajka"]
[Date "2019.07.19"]
[Round "4.13"]
[White "Borhy, Marcell"]
[Black "Prohaszka, Peter"]
[Result "1/2-1/2"]
[ECO "A40"]
[WhiteElo "2382"]
[BlackElo "2598"]
[Annotator "ChessBase"]
[PlyCount "97"]
[EventDate "2019.07.18"]
[EventType "swiss"]
[EventCountry "HUN"]
[SourceTitle "playchess.com"]
[Source "ChessBase"]
[SourceQuality "1"]
[TimeControl "1200+5"]

1. d4 {[%emt 0:00:02]} Nf6 {[%emt 0:00:20]} 2. c4 {[%emt 0:00:02]} e6 {[%emt 0:00:01]} 3. g3 {[%emt 0:00:02]} d5 {[%emt 0:00:44]} 4. Nf3 {[%emt 0:00:03]} Bb4+ {[%emt 0:00:17]} 5. Bd2 {[%emt 0:00:01]} Bd6 {[%emt 0:00:01]} 6. Bg2 {[%emt 0:00:03]} c6 {[%emt 0:00:04]} 7. Qc2 {[%emt 0:00:02]} O-O {[%emt 0:00:21]} 8. O-O {[%emt 0:00:03]} Nbd7 {[%emt 0:00:15]} 9. Bg5 {[%emt 0:00:04]} h6 {[%emt 0:00:10]} 10. Bxf6 {[%emt 0:00:03]} Nxf6 {[%emt 0:00:06]} 11. Nbd2 {[%emt 0:00:06]} b6 {[%emt 0:00:37]} 12. e4 {[%emt 0:00:03]} Be7 {[%emt 0:00:57]} 13. e5 {[%emt 0:01:13]} Nd7 {[%emt 0:00:18]} 14. cxd5 {[%emt 0:00:02]} cxd5 {[%emt 0:00:01]} 15. Rfc1 {[%emt 0:00:01]} Nb8 {[%emt 0:01:52]} 16. Bf1 {[%emt 0:00:41]} Bd7 {[%emt 0:00:14]} 17. Qc7 {[%emt 0:00:58]} Qxc7 {[%emt 0:00:47]} 18. Rxc7 {[%emt 0:00:02]} Bd8 {[%emt 0:00:05]} 19. Rc2 {[%emt 0:01:19]} Nc6 {[%emt 0:00:08]} 20. a3 {[%emt 0:00:12]} a6 {[%emt 0:04:32]} 21. Rac1 {[%emt 0:00:15]} Ne7 {[%emt 0:00:02]} 22. Bd3 {[%emt 0:00:24]} f5 {[%emt 0:00:09]} 23. b4 {[%emt 0:02:57]} Bc8 {[%emt 0:01:57]} 24. Nb1 {[%emt 0:02:50]} Rb8 {[%emt 0:00:23]} 25. b5 {[%emt 0:01:46]} a5 {[%emt 0:00:24]} 26. a4 {[%emt 0:01:11]} Bd7 {[%emt 0:00:11]} 27. Nc3 {[%emt 0:00:26]} g5 {[%emt 0:00:17]} 28. Ne2 {[%emt 0:00:03]} Kg7 {[%emt 0:00:14]} 29. Ne1 {[%emt 0:00:33]} Ng6 {[%emt 0:00:47]} 30. f3 {[%emt 0:00:26]} h5 {[%emt 0:00:06]} 31. Ng2 {[%emt 0:00:25]} Rh8 {[%emt 0:00:29]} 32. h3 {[%emt 0:00:32]} Rf8 {[%emt 0:02:05]} 33. Rc3 {[%emt 0:00:02]} Ne7 {[%emt 0:00:35]} 34. Bb1 {[%emt 0:01:07]} Rc8 {[%emt 0:00:06]} 35. Rxc8 {[%emt 0:00:17]} Nxc8 {[%emt 0:00:09]} 36. f4 {[%emt 0:00:36]} h4 {[%emt 0:01:22]} 37. gxh4 {[%emt 0:00:17]} gxf4 {[%emt 0:00:15]} 38. Nexf4 {[%emt 0:00:05]} Ne7 {[%emt 0:00:26]} 39. Nh5+ {[%emt 0:00:31]} Kf7 {[%emt 0:00:16]} 40. Nf6 {[%emt 0:00:03]} Bc8 {[%emt 0:00:03]} 41. Kf2 {[%emt 0:00:15]} Bb7 {[%emt 0:00:06]} 42. Nd7 {[%emt 0:01:44]} Rh8 {[%emt 0:00:07]} 43. Nb8 {[%emt 0:00:04]} Ng6 {[%emt 0:00:21]} 44. Nc6 {[%emt 0:00:01]} Ke8 {[%emt 0:00:53]} 45. Nxd8 {[%emt 0:00:12]} Kxd8 {[%emt 0:00:01]} 46. Kg3 {[%emt 0:00:01]} Rg8 {[%emt 0:00:01]} 47. Kf3 {[%emt 0:00:02]} Rh8 {[%emt 0:00:00]} 48. Kg3 {[%emt 0:00:00]} Rg8 {[%emt 0:00:01]} 49. Kf3 {[%emt 0:00:01]} 1/2-1/2

[Event "HUN-ch Rapid 2019"]
[Site "Ajka"]
[Date "2019.07.19"]
[Round "4.14"]
[White "Medvegy, Zoltan"]
[Black "Seres, Bela"]
[Result "1-0"]
[ECO "A38"]
[WhiteElo "2539"]
[BlackElo "2161"]
[Annotator "ChessBase"]
[PlyCount "65"]
[EventDate "2019.07.18"]
[EventType "swiss"]
[EventCountry "HUN"]
[SourceTitle "playchess.com"]
[Source "ChessBase"]
[SourceQuality "1"]
[TimeControl "1200+5"]

1. c4 {[%emt 0:00:02]} c5 {[%emt 0:00:05]} 2. g3 {[%emt 0:00:12]} Nc6 {[%emt 0:00:03]} 3. Bg2 {[%emt 0:00:01]} g6 {[%emt 0:00:02]} 4. Nc3 {[%emt 0:00:02]} Bg7 {[%emt 0:00:01]} 5. Nf3 {[%emt 0:00:07]} Nf6 {[%emt 0:00:01]} 6. d4 {[%emt 0:00:40]} cxd4 {[%emt 0:00:06]} 7. Nxd4 {[%emt 0:00:01]} O-O {[%emt 0:00:02]} 8. O-O {[%emt 0:00:11]} Ng4 {[%emt 0:00:25]} 9. e3 {[%emt 0:00:15]} d6 {[%emt 0:00:02]} 10. b3 {[%emt 0:01:26]} Nxd4 {[%emt 0:00:32]} 11. exd4 {[%emt 0:00:02]} Nh6 {[%emt 0:00:02]} 12. Bxh6 {[%emt 0:00:19]} Bxh6 {[%emt 0:00:00]} 13. Qe2 {[%emt 0:00:07]} Bg7 {[%emt 0:00:36]} 14. Rfd1 {[%emt 0:00:30]} Rb8 {[%emt 0:00:23]} 15. b4 {[%emt 0:01:40]} Bd7 {[%emt 0:01:22]} 16. Rac1 {[%emt 0:01:50]} Re8 {[%emt 0:01:48]} 17. c5 {[%emt 0:00:35]} Bh6 {[%emt 0:00:59]} 18. Rc2 {[%emt 0:00:43]} Bf5 {[%emt 0:00:03]} 19. Be4 {[%emt 0:00:08]} Bxe4 {[%emt 0:01:32]} 20. Qxe4 {[%emt 0:00:35]} e6 {[%emt 0:01:35]} 21. a4 {[%emt 0:01:51]} a6 {[%emt 0:00:17]} 22. Qf3 {[%emt 0:00:33]} Bg7 {[%emt 0:01:17]} 23. d5 {[%emt 0:02:22]} e5 {[%emt 0:04:02]} 24. Ne4 {[%emt 0:00:38]} dxc5 {[%emt 0:00:09]} 25. bxc5 {[%emt 0:00:02]} f5 {[%emt 0:00:30]} 26. Nd6 {[%emt 0:00:03]} Re7 {[%emt 0:00:00]} 27. Nc4 {[%emt 0:00:55]} e4 {[%emt 0:00:34]} 28. Qb3 {[%emt 0:00:03]} Kh8 {[%emt 0:00:19]} 29. d6 {[%emt 0:00:19]} Rf7 {[%emt 0:00:59]} 30. Ne5 {[%emt 0:00:14]} Bxe5 {[%emt 0:00:43]} 31. Qxf7 {[%emt 0:00:02]} Bf6 {[%emt 0:00:01]} 32. c6 {[%emt 0:00:40]} bxc6 {[%emt 0:00:09]} 33. Rxc6 {[%emt 0:00:02]} 1-0

[Event "HUN-ch Rapid 2019"]
[Site "Ajka"]
[Date "2019.07.19"]
[Round "4.15"]
[White "Horvath, Adam"]
[Black "Balint, Vilmos"]
[Result "1-0"]
[ECO "C03"]
[WhiteElo "2517"]
[BlackElo "2203"]
[Annotator "ChessBase"]
[PlyCount "67"]
[EventDate "2019.07.18"]
[EventType "swiss"]
[EventCountry "HUN"]
[SourceTitle "playchess.com"]
[Source "ChessBase"]
[SourceQuality "1"]
[TimeControl "1200+5"]

1. e4 {[%emt 0:00:03]} e6 {[%emt 0:00:10]} 2. d4 {[%emt 0:00:01]} d5 {[%emt 0:00:01]} 3. Nd2 {[%emt 0:00:01]} a6 {[%emt 0:00:01]} 4. Ngf3 {[%emt 0:00:03]} c5 {[%emt 0:00:01]} 5. exd5 {[%emt 0:00:07]} exd5 {[%emt 0:00:01]} 6. Bd3 {[%emt 0:00:03]} c4 {[%emt 0:00:28]} 7. Be2 {[%emt 0:00:01]} Nf6 {[%emt 0:00:00]} 8. O-O {[%emt 0:00:27]} Be7 {[%emt 0:00:16]} 9. Ne5 {[%emt 0:00:04]} O-O {[%emt 0:00:10]} 10. f4 {[%emt 0:00:04]} Bf5 {[%emt 0:00:31]} 11. g4 {[%emt 0:00:25]} Bc8 {[%emt 0:00:41]} 12. Bf3 {[%emt 0:00:27]} Ne8 {[%emt 0:00:01]} 13. g5 {[%emt 0:02:58]} f6 {[%emt 0:00:16]} 14. gxf6 {[%emt 0:00:01]} gxf6 {[%emt 0:00:01]} 15. Ng4 {[%emt 0:00:03]} Nc6 {[%emt 0:00:20]} 16. c3 {[%emt 0:00:37]} Kh8 {[%emt 0:00:08]} 17. Kh1 {[%emt 0:00:25]} Ng7 {[%emt 0:01:07]} 18. Rg1 {[%emt 0:00:25]} Bf5 {[%emt 0:00:37]} 19. Nh6 {[%emt 0:00:16]} Qd7 {[%emt 0:00:10]} 20. Nf1 {[%emt 0:00:55]} Bg6 {[%emt 0:00:17]} 21. Ne3 {[%emt 0:00:33]} Be4 {[%emt 0:02:26]} 22. Bxe4 {[%emt 0:00:29]} dxe4 {[%emt 0:00:01]} 23. f5 {[%emt 0:01:29]} b5 {[%emt 0:02:37]} 24. Qg4 {[%emt 0:01:23]} Bd8 {[%emt 0:00:23]} 25. Nd5 {[%emt 0:02:47]} Ra7 {[%emt 0:00:42]} 26. Nf4 {[%emt 0:00:37]} Re8 {[%emt 0:02:48]} 27. Be3 {[%emt 0:00:28]} Qe7 {[%emt 0:00:12]} 28. Ne6 {[%emt 0:01:29]} Bb6 {[%emt 0:00:15]} 29. Rg3 {[%emt 0:00:50]} Nd8 {[%emt 0:00:13]} 30. d5 {[%emt 0:00:16]} Bxe3 {[%emt 0:00:13]} 31. Rxe3 {[%emt 0:00:02]} Rd7 {[%emt 0:01:05]} 32. Rg1 {[%emt 0:00:18]} Ndxe6 {[%emt 0:00:05]} 33. dxe6 {[%emt 0:00:14]} Rd3 {[%emt 0:00:31]} 34. Nf7+ 1-0

[Event "HUN-ch Rapid 2019"]
[Site "Ajka"]
[Date "2019.07.19"]
[Round "4.16"]
[White "Laza, Szabolcs"]
[Black "Horvath, Peter"]
[Result "0-1"]
[ECO "D31"]
[WhiteElo "2185"]
[BlackElo "2418"]
[Annotator "NA"]
[PlyCount "58"]
[EventDate "2019.07.18"]
[EventType "swiss"]
[EventCountry "HUN"]
[SourceTitle "playchess.com"]
[Source "ChessBase"]
[SourceQuality "1"]
[TimeControl "1200+5"]

1. d4 {[%emt 0:00:02]} d5 {[%emt 0:00:03]} 2. c4 {[%emt 0:00:01]} e6 {[%emt 0:00:02]} 3. Nc3 {[%emt 0:00:02]} Bb4 {[%emt 0:00:02]} 4. Qa4+ {[%emt 0:00:19]} Nc6 {[%emt 0:00:03]} 5. Nf3 {[%emt 0:00:04]} dxc4 {[%emt 0:00:46]} 6. e3 {[%emt 0:02:08]} Bd7 {[%emt 0:00:17]} 7. Qc2 {[%emt 0:00:24]} b5 {[%emt 0:00:10]} 8. Be2 {[%emt 0:01:08]} Nf6 {[%emt 0:01:08]} 9. O-O {[%emt 0:00:11]} a6 {[%emt 0:00:01]} 10. e4 {[%emt 0:02:51]} Be7 {[%emt 0:01:09]} 11. e5 {[%emt 0:02:27]} Nd5 {[%emt 0:00:03]} 12. Ne4 {[%emt 0:00:08]} h6 {[%emt 0:00:22]} 13. Qd1 {[%emt 0:00:49]} Qb8 {[%emt 0:00:45]} 14. a4 {[%emt 0:00:22]} Na5 {[%emt 0:00:59]} 15. axb5 {[%emt 0:00:25]} axb5 {[%emt 0:00:02]} 16. Be3 {[%emt 0:01:10]} Nb3 {[%emt 0:00:48]} 17. Rxa8 {[%emt 0:00:03]} Qxa8 {[%emt 0:00:02]} 18. Nfd2 {[%emt 0:00:12]} Nxe3 {[%emt 0:01:26]} 19. fxe3 {[%emt 0:00:02]} Nxd2 {[%emt 0:00:03]} 20. Nxd2 {[%emt 0:00:01]} Bg5 {[%emt 0:00:10]} 21. Rf3 {[%emt 0:00:14]} Bc6 {[%emt 0:00:36]} 22. Rg3 {[%emt 0:00:01]} g6 {[%emt 0:01:07]} 23. Bf1 {[%emt 0:03:01]} Qa2 {[%emt 0:03:41]} 24. Qc2 {[%emt 0:00:29]} Qa1 {[%emt 0:00:03]} 25. Ne4 {[%emt 0:01:57]} Qe1 {[%emt 0:00:03]} 26. Nxg5 {[%emt 0:01:47]} hxg5 {[%emt 0:00:03]} 27. Qf2 {[%emt 0:01:13]} Qxf2+ {[%emt 0:00:28]} 28. Kxf2 {[%emt 0:00:02]} Ke7 {[%emt 0:00:36]} 29. Ke1 {[%emt 0:00:27]} Rxh2 {[%emt 0:00:16]} 0-1

[Event "HUN-ch Rapid 2019"]
[Site "Ajka"]
[Date "2019.07.19"]
[Round "4.17"]
[White "Horvath, Csaba"]
[Black "Videki, Sandor"]
[Result "0-1"]
[ECO "B53"]
[WhiteElo "2503"]
[BlackElo "2401"]
[Annotator "ChessBase"]
[PlyCount "50"]
[EventDate "2019.07.18"]
[EventType "swiss"]
[EventCountry "HUN"]
[SourceTitle "playchess.com"]
[Source "ChessBase"]
[SourceQuality "1"]
[TimeControl "1200+5"]

1. e4 {[%emt 0:00:03]} c5 {[%emt 0:00:03]} 2. Nf3 {[%emt 0:00:01]} d6 {[%emt 0:00:08]} 3. d4 {[%emt 0:00:05]} cxd4 {[%emt 0:00:02]} 4. Qxd4 {[%emt 0:00:05]} Bd7 {[%emt 0:00:12]} 5. Bc4 {[%emt 0:00:59]} Nc6 {[%emt 0:00:34]} 6. Qd3 {[%emt 0:00:02]} Nf6 {[%emt 0:01:03]} 7. Nc3 {[%emt 0:00:02]} Rc8 {[%emt 0:00:12]} 8. Bb3 {[%emt 0:00:14]} g6 {[%emt 0:00:37]} 9. Bg5 {[%emt 0:00:51]} Bg7 {[%emt 0:00:10]} 10. Qd2 {[%emt 0:00:56]} O-O {[%emt 0:02:18]} 11. Bh6 {[%emt 0:02:10]} Na5 {[%emt 0:00:59]} 12. Bxg7 {[%emt 0:00:05]} Kxg7 {[%emt 0:00:01]} 13. Qd4 {[%emt 0:00:44]} Nxb3 {[%emt 0:01:21]} 14. axb3 {[%emt 0:00:09]} a6 {[%emt 0:00:07]} 15. O-O {[%emt 0:00:46]} Bc6 {[%emt 0:00:27]} 16. Rad1 {[%emt 0:00:42]} Qc7 {[%emt 0:00:20]} 17. Nd2 {[%emt 0:01:01]} b5 {[%emt 0:00:23]} 18. Rfe1 {[%emt 0:00:51]} Rfd8 {[%emt 0:01:50]} 19. Nf1 {[%emt 0:00:55]} e5 {[%emt 0:00:30]} 20. Qe3 {[%emt 0:05:28]} b4 {[%emt 0:00:03]} 21. Na2 {[%emt 0:00:03]} Bxe4 {[%emt 0:01:06]} 22. Nxb4 {[%emt 0:00:43]} Qb7 {[%emt 0:00:22]} 23. Ng3 {[%emt 0:00:56]} Qxb4 {[%emt 0:02:41]} 24. c3 {[%emt 0:00:28]} Qxb3 {[%emt 0:00:28]} 25. f3 {[%emt 0:00:55]} Bc2 {[%emt 0:00:42]} 0-1

[Event "HUN-ch Rapid 2019"]
[Site "Ajka"]
[Date "2019.07.19"]
[Round "4.18"]
[White "Farago, Ivan"]
[Black "Kassay, Krisztian"]
[Result "1-0"]
[ECO "E15"]
[WhiteElo "2350"]
[BlackElo "2174"]
[Annotator "NA"]
[PlyCount "82"]
[EventDate "2019.07.18"]
[EventType "swiss"]
[EventCountry "HUN"]
[SourceTitle "playchess.com"]
[Source "ChessBase"]
[SourceQuality "1"]
[TimeControl "1200+5"]

1. d4 {[%emt 0:00:02]} Nf6 {[%emt 0:00:02]} 2. c4 {[%emt 0:00:01]} e6 {[%emt 0:00:05]} 3. Nf3 {[%emt 0:00:01]} b6 {[%emt 0:00:05]} 4. g3 {[%emt 0:00:03]} Ba6 {[%emt 0:00:04]} 5. Qa4 {[%emt 0:00:04]} c6 {[%emt 0:00:22]} 6. Nc3 {[%emt 0:00:14]} d5 {[%emt 0:00:44]} 7. cxd5 {[%emt 0:00:05]} exd5 {[%emt 0:00:15]} 8. Bf4 {[%emt 0:00:14]} Bd6 {[%emt 0:00:37]} 9. Bxd6 {[%emt 0:00:28]} Qxd6 {[%emt 0:00:04]} 10. Bg2 {[%emt 0:00:01]} O-O {[%emt 0:00:15]} 11. O-O {[%emt 0:00:02]} Bb7 {[%emt 0:03:01]} 12. Rfd1 {[%emt 0:00:49]} Nbd7 {[%emt 0:00:22]} 13. b4 {[%emt 0:00:41]} a5 {[%emt 0:01:11]} 14. b5 {[%emt 0:00:07]} Ne4 {[%emt 0:00:45]} 15. Rac1 {[%emt 0:00:28]} Nxc3 {[%emt 0:01:18]} 16. Rxc3 {[%emt 0:00:02]} Qb4 {[%emt 0:01:13]} 17. Qxb4 {[%emt 0:04:12]} axb4 {[%emt 0:00:02]} 18. Rc2 {[%emt 0:00:03]} c5 {[%emt 0:00:23]} 19. dxc5 {[%emt 0:00:40]} bxc5 {[%emt 0:00:07]} 20. Ne1 {[%emt 0:00:02]} Nb6 {[%emt 0:03:23]} 21. Nd3 {[%emt 0:00:18]} Na4 {[%emt 0:00:54]} 22. Nxc5 {[%emt 0:00:27]} Nxc5 {[%emt 0:01:05]} 23. Rxc5 {[%emt 0:00:02]} Rxa2 {[%emt 0:00:02]} 24. Rc7 {[%emt 0:01:19]} b3 {[%emt 0:00:56]} 25. Rb1 {[%emt 0:00:31]} Rc8 {[%emt 0:01:48]} 26. Rxc8+ {[%emt 0:00:28]} Bxc8 {[%emt 0:00:01]} 27. Bxd5 {[%emt 0:00:01]} Rxe2 {[%emt 0:00:36]} 28. Rxb3 {[%emt 0:00:22]} Rd2 {[%emt 0:01:14]} 29. Be4 {[%emt 0:00:43]} Rd4 {[%emt 0:00:55]} 30. Rd3 {[%emt 0:00:20]} Rxd3 {[%emt 0:00:12]} 31. Bxd3 {[%emt 0:00:01]} Bb7 {[%emt 0:00:12]} 32. Bf1 {[%emt 0:01:15]} Kf8 {[%emt 0:00:10]} 33. Bg2 {[%emt 0:00:14]} Bxg2 {[%emt 0:00:02]} 34. Kxg2 {[%emt 0:00:01]} Ke7 {[%emt 0:00:01]} 35. Kf3 {[%emt 0:00:01]} Kd6 {[%emt 0:00:01]} 36. Ke4 {[%emt 0:00:01]} Kc5 {[%emt 0:00:02]} 37. Ke5 {[%emt 0:00:02]} Kxb5 {[%emt 0:00:04]} 38. Kd6 {[%emt 0:00:01]} Kc4 {[%emt 0:00:21]} 39. Ke7 {[%emt 0:00:01]} f5 {[%emt 0:00:04]} 40. Kf7 {[%emt 0:00:04]} g5 {[%emt 0:00:14]} 41. Kf6 {[%emt 0:00:11]} Kd5 1-0

[Event "HUN-ch Rapid 2019"]
[Site "Ajka"]
[Date "2019.07.19"]
[Round "4.19"]
[White "Gaal, Ede"]
[Black "Jakab, Attila"]
[Result "0-1"]
[ECO "B27"]
[WhiteElo "2042"]
[BlackElo "2377"]
[Annotator "NA"]
[PlyCount "65"]
[EventDate "2019.07.18"]
[EventType "swiss"]
[EventCountry "HUN"]
[SourceTitle "playchess.com"]
[Source "ChessBase"]
[SourceQuality "1"]
[TimeControl "1200+5"]

1. e4 {[%emt 0:00:06]} c5 {[%emt 0:00:02]} 2. Nf3 {[%emt 0:00:04]} g6 {[%emt 0:00:03]} 3. Nc3 {[%emt 0:01:21]} Bg7 {[%emt 0:00:02]} 4. h4 {[%emt 0:00:30]} h6 {[%emt 0:00:04]} 5. h5 {[%emt 0:00:06]} g5 {[%emt 0:00:03]} 6. d4 {[%emt 0:00:05]} Qa5 {[%emt 0:00:05]} 7. Bd2 {[%emt 0:01:06]} cxd4 {[%emt 0:00:06]} 8. Nd5 {[%emt 0:00:41]} Qd8 {[%emt 0:00:02]} 9. Bb4 {[%emt 0:00:30]} Nc6 {[%emt 0:02:09]} 10. Ba3 {[%emt 0:01:45]} e6 {[%emt 0:03:15]} 11. c3 {[%emt 0:04:22]} exd5 {[%emt 0:00:58]} 12. exd5 {[%emt 0:00:02]} dxc3 {[%emt 0:00:04]} 13. dxc6 {[%emt 0:00:57]} cxb2 {[%emt 0:00:13]} 14. Qe2+ {[%emt 0:03:40]} Ne7 {[%emt 0:00:02]} 15. Bxb2 {[%emt 0:02:53]} Qa5+ {[%emt 0:00:21]} 16. Qd2 {[%emt 0:00:01]} Qxd2+ {[%emt 0:00:03]} 17. Nxd2 {[%emt 0:00:01]} Bxb2 {[%emt 0:00:02]} 18. Rb1 {[%emt 0:00:02]} bxc6 {[%emt 0:01:05]} 19. Rxb2 {[%emt 0:00:05]} d5 {[%emt 0:00:04]} 20. Bd3 {[%emt 0:00:55]} Kd8 {[%emt 0:00:01]} 21. f3 {[%emt 0:00:13]} c5 {[%emt 0:00:33]} 22. Kf2 {[%emt 0:00:59]} Be6 {[%emt 0:00:50]} 23. Rb5 {[%emt 0:00:10]} c4 {[%emt 0:00:04]} 24. Bc2 {[%emt 0:00:09]} Kc7 {[%emt 0:00:03]} 25. Rc1 {[%emt 0:00:16]} Rhb8 {[%emt 0:00:15]} 26. Rc5+ {[%emt 0:00:31]} Kd6 {[%emt 0:00:03]} 27. Ra5 {[%emt 0:00:01]} Rb2 {[%emt 0:00:10]} 28. Ke3 {[%emt 0:00:08]} Nc6 {[%emt 0:00:09]} 29. Ra6 {[%emt 0:00:07]} Rb6 {[%emt 0:00:43]} 30. Ra4 {[%emt 0:00:19]} Ke7 {[%emt 0:00:23]} 31. Re1 {[%emt 0:00:07]} Rb2 {[%emt 0:00:08]} 32. Ra6 {[%emt 0:00:14]} d4+ {[%emt 0:00:04]} 33. Ke4 0-1

[Event "HUN-ch Rapid 2019"]
[Site "Ajka"]
[Date "2019.07.19"]
[Round "4.20"]
[White "Popovics, Adam"]
[Black "Bognar, Csaba"]
[Result "1-0"]
[ECO "E77"]
[WhiteElo "2365"]
[BlackElo "2166"]
[Annotator "NA"]
[PlyCount "82"]
[EventDate "2019.07.18"]
[EventType "swiss"]
[EventCountry "HUN"]
[SourceTitle "playchess.com"]
[Source "ChessBase"]
[SourceQuality "1"]
[TimeControl "1200+5"]

1. d4 {[%emt 0:00:05]} Nf6 {[%emt 0:00:01]} 2. c4 {[%emt 0:00:03]} g6 {[%emt 0:00:01]} 3. Nc3 {[%emt 0:00:03]} Bg7 {[%emt 0:00:02]} 4. e4 {[%emt 0:00:01]} d6 {[%emt 0:00:01]} 5. f4 {[%emt 0:00:01]} O-O {[%emt 0:00:02]} 6. Nf3 {[%emt 0:00:01]} c5 {[%emt 0:00:04]} 7. d5 {[%emt 0:00:03]} e6 {[%emt 0:00:02]} 8. dxe6 {[%emt 0:00:04]} Bxe6 {[%emt 0:00:33]} 9. Bd3 {[%emt 0:00:02]} Nc6 {[%emt 0:00:08]} 10. f5 {[%emt 0:00:03]} Bd7 {[%emt 0:00:20]} 11. O-O {[%emt 0:00:04]} Ne5 {[%emt 0:03:58]} 12. Bg5 {[%emt 0:00:17]} h6 {[%emt 0:00:16]} 13. Bh4 {[%emt 0:00:03]} g5 {[%emt 0:01:24]} 14. Bg3 {[%emt 0:00:12]} Qe7 {[%emt 0:00:39]} 15. h4 {[%emt 0:00:52]} g4 {[%emt 0:01:04]} 16. Nxe5 {[%emt 0:00:18]} dxe5 {[%emt 0:00:04]} 17. Nd5 {[%emt 0:01:33]} Nxd5 {[%emt 0:00:03]} 18. cxd5 {[%emt 0:01:14]} h5 {[%emt 0:01:19]} 19. Qd2 {[%emt 0:00:24]} f6 {[%emt 0:01:04]} 20. d6 {[%emt 0:00:29]} Qd8 {[%emt 0:01:10]} 21. Rac1 {[%emt 0:00:54]} b6 {[%emt 0:00:28]} 22. b4 {[%emt 0:00:45]} Kh7 {[%emt 0:00:31]} 23. Bf2 {[%emt 0:00:48]} Bh6 {[%emt 0:00:53]} 24. Be3 {[%emt 0:00:02]} Bxe3+ {[%emt 0:00:06]} 25. Qxe3 {[%emt 0:00:02]} cxb4 {[%emt 0:00:07]} 26. Rc7 {[%emt 0:00:03]} Rf7 {[%emt 0:00:11]} 27. Bc4 {[%emt 0:00:42]} Rg7 {[%emt 0:00:10]} 28. Bd5 {[%emt 0:01:52]} Bb5 {[%emt 0:01:26]} 29. Rfc1 {[%emt 0:00:21]} Bd7 {[%emt 0:02:11]} 30. Bxa8 {[%emt 0:00:55]} Qxa8 {[%emt 0:00:02]} 31. R1c4 {[%emt 0:00:01]} b5 {[%emt 0:01:13]} 32. Rxb4 {[%emt 0:00:45]} a5 {[%emt 0:00:02]} 33. Rb2 {[%emt 0:00:30]} Qa6 {[%emt 0:00:16]} 34. Qc5 {[%emt 0:00:47]} b4 {[%emt 0:00:22]} 35. Rd2 {[%emt 0:00:02]} Qa8 {[%emt 0:00:27]} 36. Rd5 {[%emt 0:00:25]} Qa6 {[%emt 0:00:49]} 37. Rd2 {[%emt 0:00:03]} Qa8 {[%emt 0:00:02]} 38. Re2 {[%emt 0:01:13]} Qa6 {[%emt 0:00:36]} 39. Re3 {[%emt 0:00:01]} Qa8 {[%emt 0:00:46]} 40. Ra7 {[%emt 0:00:04]} Qg8 {[%emt 0:00:16]} 41. Qxa5 {[%emt 0:00:13]} Qc4 1-0